bitfinex-derivatives/quotes_ETHF0:USTF0_20250427
["timestamp","ask_amount","ask_price","bid_price","bid_amount"]
[1745790348743,1.6506,1806.5,1806.4,3.551]
[1745790349143,5.3726,1806.5,1806.4,3.551]
[1745790349742,10.3726,1806.5,1806.1,7.86579]
[1745790349950,3.4601,1806.4,1806.1,6.7588]
[1745790350251,1.7388,1806.3,1806.2,1.10693]
[1745790351249,5.4608,1806.3,1806.1,3.2078]
[1745790351449,5.4608,1806.3,1806.1,4.31476]
[1745790351651,1.7388,1806.2,1806.1,4.31476]
[1745790352644,3.2078,1806.6,1806.1,4.9246]
[1745790352840,3.722,1806.7,1806.0,5.1524]
[1745790352841,3.722,1806.7,1806.6,1.10669]
[1745790353045,3.722,1806.7,1806.6,4.65869]
[1745790353242,0.8107,1807.1,1806.7,2.76657]
[1745790353452,0.8107,1807.1,1807.0,1.10645]
[1745790354156,4.5327,1807.1,1807.0,1.10645]
[1745790354451,3.722,1807.1,1807.0,1.10645]
[1745790354655,3.722,1807.1,1807.0,2.82325]
[1745790357857,3.722,1807.1,1807.0,6.03105]
[1745790366058,3.722,1807.1,1807.0,2.82325]
[1745790366353,3.722,1807.1,1807.0,6.03105]
[1745790369151,3.722,1807.1,1807.0,2.82325]
[1745790369351,3.722,1807.1,1807.0,6.03105]
[1745790383366,3.722,1807.1,1807.0,4.31425]
[1745790384370,3.722,1807.1,1807.0,3.2078]
[1745790384567,4.5793,1807.1,1807.0,4.31425]
[1745790384769,6.1667,1807.1,1807.0,3.2078]
[1745790388170,6.1667,1807.1,1807.0,4.31425]
[1745790388369,6.1667,1807.1,1807.0,3.2078]
[1745790390666,6.1667,1807.1,1806.9,7.11436]
[1745790390867,2.5076,1807.0,1806.9,10.32216]
[1745790392171,6.2296,1807.0,1806.9,10.32216]
[1745790393972,5.3681,1807.0,1806.9,10.32216]
[1745790394668,3.722,1807.0,1806.9,10.32216]
[1745790404076,4.82845,1807.0,1806.9,6.7818]
[1745790404272,4.82845,1807.0,1806.9,3.574]
[1745790404478,1.10669,1806.6,1806.5,10.53294027]
[1745790404779,1.10669,1806.6,1806.5,7.32514027]
[1745790404978,6.10669,1806.6,1806.5,7.32514027]
[1745790405179,12.25619,1806.6,1806.5,7.32514027]
[1745790406283,11.1495,1806.6,1806.5,7.32514027]
[1745790406585,6.1495,1806.6,1806.5,8.43189027]
[1745790406881,6.9565,1806.6,1806.5,1.10675]
[1745790417091,6.9565,1806.6,1806.4,1.10677]
[1745790417292,1.6103,1806.5,1806.4,1.10677]
[1745790417999,1.6103,1806.5,1806.4,2.75167]
[1745790418190,5.3323,1806.5,1806.4,2.75167]
[1745790420600,3.722,1806.5,1806.4,2.75167]
[1745790421704,3.4455,1806.5,1806.4,7.75167]
[1745790422003,1.0343,1806.5,1806.4,7.75167]
[1745790422201,3.2078,1807.1,1806.9,1.10651]
[1745790422795,3.2078,1807.1,1806.9,2.71881]
[1745790422995,1.6802,1807.0,1806.9,2.71881]
[1745790424107,5.4022,1807.0,1806.9,2.71881]
[1745790426909,3.722,1807.0,1806.9,2.71881]
[1745790437218,3.722,1807.0,1806.9,7.71881]
[1745790438119,1.7049,1807.4,1807.3,1.10626]
[1745790438519,1.7049,1807.4,1807.2,3.551]
[1745790439019,1.7049,1807.4,1807.2,4.65731]
[1745790439208,5.4269,1807.4,1807.2,4.65731]
[1745790440417,1.6548,1807.3,1807.2,4.65731]
[1745790441118,5.3768,1807.3,1807.2,4.65731]
[1745790441521,5.3768,1807.3,1807.2,4.65733]
[1745790443716,5.3768,1807.3,1807.2,3.551]
[1745790447421,5.3768,1807.3,1807.2,4.65733]
[1745790452329,10.3768,1807.3,1807.0,3.2078]
[1745790452527,1.10639,1807.1,1806.9,4.64447]
[1745790452825,1.7154,1807.0,1806.9,3.538]
[1745790453029,2.82185,1807.0,1806.9,3.538]
[1745790453218,6.54385,1807.0,1806.9,3.538]
[1745790453824,5.4374,1807.0,1806.8,3.2078]
[1745790454026,3.4231,1806.9,1806.7,3.538]
[1745790454326,2.822,1806.8,1806.5,4.31453]
[1745790454529,1.7154,1806.7,1806.5,4.31453]
[1745790454916,0.8705,1806.6,1806.5,4.31453]
[1745790455122,4.5925,1806.6,1806.5,4.31453]
[1745790459934,4.5925,1806.6,1806.5,1.10673]
[1745790459935,5.4453,1806.6,1806.5,1.10673]
[1745790461530,5.4453,1806.6,1806.4,5.45807]
[1745790461732,1.7372,1806.5,1806.4,7.06897]
[1745790462125,5.4592,1806.5,1806.4,7.06897]
[1745790475231,3.722,1806.5,1806.4,7.06897]
[1745790485142,3.722,1806.5,1806.4,12.06897]
[1745790485439,4.8481,1806.9,1806.8,1.10657]
[1745790486142,8.5701,1806.9,1806.8,1.10657]
[1745790486839,5.3623,1806.9,1806.8,2.74567]
[1745790487141,3.722,1806.9,1806.8,2.74567]
[1745790489039,3.722,1806.9,1806.8,7.74567]
[1745790489535,1.54106199,1806.9,1806.8,7.74567]
[1745790489731,0.18483801,1806.9,1806.8,7.74567]
[1745790490242,3.2078,1807.4,1807.3,1.10626]
[1745790490635,3.2078,1807.4,1807.2,3.529]
[1745790490838,1.6728,1807.3,1807.2,3.529]
[1745790491237,3.722,1807.3,1807.2,11.12823]
[1745790492137,3.722,1807.3,1807.2,11.56964184]
[1745790493439,3.722,1807.3,1807.2,16.56964184]
[1745790494246,1.6728,1807.7,1807.6,1.10608]
[1745790494448,3.2078,1807.8,1807.7,1.10602]
[1745790494645,1.5739,1807.9,1807.7,1.10602]
[1745790494846,1.5739,1807.9,1807.5,3.528]
[1745790494847,1.5739,1807.9,1807.6,4.45765]
[1745790495347,0.8521,1807.8,1807.6,4.45765]
[1745790495547,1.7043,1807.7,1807.6,4.45765]
[1745790496049,5.4263,1807.7,1807.6,4.45765]
[1745790496648,3.722,1807.7,1807.6,4.45765]
[1745790505347,3.722,1807.7,1807.6,7.66545]
[1745790505641,0.95579419,1807.7,1807.6,7.66545]
[1745790505954,1.5879,1808.1,1808.0,1.10584]
[1745790506147,5.3099,1808.1,1808.0,1.10584]
[1745790507655,5.3099,1808.1,1808.0,3.58834]
[1745790509154,5.3099,1808.1,1808.0,1.10584]
[1745790509456,6.0995,1808.1,1808.0,1.10584]
[1745790512154,6.0995,1808.1,1807.6,3.2078]
[1745790512356,1.106,1807.8,1807.6,3.2078]
[1745790512563,4.34702,1807.7,1807.4,4.31397]
[1745790512748,2.7039,1807.6,1807.4,3.2078]
[1745790512947,1.5978,1807.5,1807.4,3.2078]
[1745790513154,1.10621,1807.4,1807.2,3.63]
[1745790513347,1.10635,1807.2,1806.9,1.10649]
[1745790513553,1.6378,1807.1,1806.8,4.31432]
[1745790513754,1.6378,1807.1,1806.9,1.1065]
[1745790513961,1.6378,1807.1,1806.8,1.10653]
[1745790514259,5.3598,1807.1,1806.8,1.10653]
[1745790516764,5.3598,1807.1,1806.9,1.1065]
[1745790517453,1.10654,1806.9,1806.6,3.2078]
[1745790517655,3.2936,1806.8,1806.6,3.2078]
[1745790518155,7.0156,1806.8,1806.6,3.2078]
[1745790518659,7.0156,1806.8,1806.7,1.10663]
[1745790519458,6.2064,1806.8,1806.7,1.10663]
[1745790519655,3.722,1806.8,1806.7,1.10663]
[1745790519857,3.722,1806.8,1806.7,2.78843]
[1745790521258,3.722,1806.9,1806.8,1.10657]
[1745790521964,3.722,1806.9,1806.8,2.78837]
[1745790527178,3.722,1806.9,1806.8,5.99617]
[1745790530680,3.722,1806.9,1806.8,4.59077]
[1745790530984,11.9298,1806.9,1806.2,3.2078]
[1745790531184,1.10718,1805.8,1805.6,14.75261229]
[1745790531586,6.10718,1805.8,1805.7,4.13712777]
[1745790531881,1.10724,1805.7,1805.6,14.75261229]
[1745790532083,7.94604,1805.7,1805.6,11.86269603]
[1745790532282,16.66804,1805.7,1805.6,10.56029603]
[1745790532683,16.66804,1805.7,1805.6,9.59039603]
[1745790533794,10.5608,1805.7,1805.6,9.59039603]
[1745790533986,10.5608,1805.7,1805.6,10.69770603]
[1745790534892,10.5608,1805.7,1805.6,9.86731229]
[1745790535092,10.5608,1805.7,1805.6,0.27691626]
[1745790535288,6.9298,1805.7,1805.6,1.38422626]
[1745790535494,6.9298,1805.7,1805.6,2.25336653]
[1745790535993,3.722,1805.7,1805.6,2.25336653]
[1745790536194,6.8398,1805.9,1805.8,1.10718]
[1745790536592,6.8398,1805.9,1805.8,1.38409626]
[1745790536789,3.722,1806.5,1806.3,1.38379626]
[1745790537182,3.2078,1806.6,1806.3,2.25293653]
[1745790537891,3.2078,1806.6,1806.5,1.38366626]
[1745790538196,6.9298,1806.6,1806.5,1.38366626]
[1745790538383,3.722,1806.6,1806.5,2.25280653]
[1745790538786,3.722,1806.6,1806.5,3.82990653]
[1745790546206,3.722,1806.6,1806.5,37.07770653]
[1745790549305,3.722,1806.6,1806.5,36.20856626]
[1745790553002,4.82869,1806.6,1806.5,33.2478]
[1745790553201,9.82869,1806.6,1806.5,33.2478]
[1745790555499,13.49069,1806.6,1806.5,30.04]
[1745790555803,13.49069,1806.6,1805.7,2.76798]
[1745790555804,1.10718,1805.8,1805.7,0.27691626]
[1745790556014,4.31498,1805.8,1805.6,3.01280626]
[1745790556212,8.03698,1805.8,1805.6,3.01280626]
[1745790556405,6.9298,1805.8,1805.6,1.90551626]
[1745790556610,1.10724,1805.7,1805.6,0.27691626]
[1745790557005,6.10724,1805.7,1805.6,0.27691626]
[1745790557205,9.82924,1805.7,1805.6,0.27691626]
[1745790560103,1.10737,1805.5,1805.4,0.27691626]
[1745790560303,4.31517,1805.5,1805.4,0.27691626]
[1745790561117,8.03717,1805.5,1805.4,0.27691626]
[1745790561510,8.03717,1805.5,1805.4,1.92991626]
[1745790561913,8.03717,1805.5,1805.4,3.03734626]
[1745790562113,6.9298,1805.5,1805.4,3.03734626]
[1745790563216,8.03717,1805.5,1805.4,3.03734626]
[1745790564816,6.9298,1805.5,1805.4,3.03734626]
[1745790566213,3.722,1805.5,1805.4,3.03734626]
[1745790566418,6.9298,1805.5,1805.4,3.03734626]
[1745790567518,6.9298,1805.5,1805.4,4.21326732]
[1745790570215,5.888,1805.6,1805.5,1.10737]
[1745790570417,5.888,1805.6,1805.5,2.76507]
[1745790570719,9.0958,1805.6,1805.5,3.94099106]
[1745790571122,12.8178,1805.6,1805.5,3.94099106]
[1745790572019,12.8178,1805.6,1805.5,4.21790732]
[1745790572409,6.9298,1805.6,1805.5,4.21790732]
[1745790572614,3.722,1805.6,1805.5,4.21790732]
[1745790573215,3.2078,1805.8,1805.7,1.10724]
[1745790573712,3.2078,1805.8,1805.7,2.28316106]
[1745790573912,3.2078,1805.8,1805.7,3.88786106]
[1745790574115,6.9298,1805.8,1805.7,3.88786106]
[1745790577120,3.2078,1805.8,1805.7,4.16477732]
[1745790583429,1.10711,1806.0,1805.8,1.10713]
[1745790583630,1.10711,1806.0,1805.9,2.74992]
[1745790583926,4.31491,1806.0,1805.9,2.74992]
[1745790584127,8.03691,1806.0,1805.9,2.74992]
[1745790586236,8.03691,1806.0,1805.9,1.6428]
[1745790587531,8.03691,1806.0,1805.9,2.74992]
[1745790588428,8.03691,1806.0,1805.9,3.02683626]
[1745790592635,4.82911,1806.0,1805.9,3.02683626]
[1745790592838,8.03691,1806.0,1805.9,3.02683626]
[1745790593232,8.03691,1806.0,1805.9,1.91971626]
[1745790594837,8.03691,1806.0,1805.9,0.27691626]
[1745790595143,1.10712,1805.9,1805.8,1.38407626]
[1745790595333,1.10712,1805.9,1805.8,1.45283732]
[1745790595732,1.10712,1805.9,1805.8,3.07213732]
[1745790596229,4.82912,1805.9,1805.8,3.07213732]
[1745790601134,4.82912,1805.9,1805.8,1.89621626]
[1745790603946,4.82912,1805.9,1805.8,3.00339626]
[1745790604646,10.71712,1805.9,1805.8,3.00339626]
[1745790605946,10.71712,1805.9,1805.8,1.89621626]
[1745790609251,10.71712,1805.9,1805.8,3.00339626]
[1745790609447,10.71712,1805.9,1805.8,1.89621626]
[1745790610452,10.71712,1805.9,1805.8,3.00339626]
[1745790615452,12.8178,1805.9,1805.8,4.17931732]
[1745790616159,9.0958,1805.9,1805.8,4.17931732]
[1745790616354,9.0958,1805.9,1805.8,9.17931732]
[1745790616657,3.2078,1805.9,1805.8,9.17931732]
[1745790616850,3.2078,1805.9,1805.8,4.17931732]
[1745790617053,12.79822622,1806.0,1805.9,1.38403626]
[1745790617255,9.00940516,1806.0,1805.9,8.07423626]
[1745790617458,14.70812711,1806.2,1806.1,1.107]
[1745790617956,14.70812711,1806.3,1806.2,1.10694]
[1745790619149,18.43012711,1806.3,1806.2,1.10694]
[1745790620457,18.43012711,1806.3,1806.2,4.78275626]
[1745790620652,3.722,1806.3,1806.2,4.78275626]
[1745790622162,3.2078,1806.6,1806.5,1.38366626]
[1745790622961,20.59612711,1806.8,1806.7,1.38354626]
[1745790623763,20.59612711,1806.8,1806.7,3.07284626]
[1745790623963,5.888,1806.8,1806.7,3.07284626]
[1745790624165,9.61,1806.8,1806.7,3.07284626]
[1745790626958,3.722,1806.8,1806.7,3.07284626]
[1745790628665,4.82857,1806.8,1806.7,1.6893]
[1745790629066,7.28067,1806.8,1806.7,1.6893]
[1745790631173,7.28067,1806.8,1806.7,1.96621626]
[1745790634573,7.28067,1806.8,1806.7,0.27691626]
[1745790636977,13.16867,1806.8,1806.7,0.27691626]
[1745790637372,14.82857,1806.8,1806.4,1.10677]
[1745790637576,4.9457,1806.7,1806.4,1.6198]
[1745790637767,1.10675,1806.5,1806.4,2.72658]
[1745790637972,1.10675,1806.5,1806.4,3.00328]
[1745790638175,4.82875,1806.5,1806.4,1.8965]
[1745790640468,4.82875,1806.5,1806.4,3.00332]
[1745790642378,4.82875,1806.5,1806.4,1.8965]
[1745790644882,4.82875,1806.5,1806.4,3.00332]
[1745790648580,4.82875,1806.5,1806.4,1.8965]
[1745790649177,4.82875,1806.5,1806.4,3.00332]
[1745790672797,4.82875,1806.5,1806.4,1.8965]
[1745790673097,6.50215,1806.5,1806.4,1.8965]
[1745790675103,4.82875,1806.5,1806.4,1.8965]
[1745790676899,4.82875,1806.5,1806.4,3.00332]
[1745790680106,4.82875,1806.5,1806.4,1.8965]
[1745790682204,4.82875,1806.5,1806.4,3.00332]
[1745790682700,4.82875,1806.5,1806.4,0.2767]
[1745790682907,1.10688,1806.3,1806.2,1.6761]
[1745790683101,4.82888,1806.3,1806.2,1.6761]
[1745790683398,4.82888,1806.3,1806.0,1.10704]
[1745790683399,1.10706,1806.0,1805.9,5.1153]
[1745790683796,1.10706,1806.0,1805.9,0.8004]
[1745790684207,6.40786,1806.0,1805.9,0.8004]
[1745790685407,6.40786,1806.0,1805.9,1.90752]
[1745790685806,6.40786,1806.0,1805.9,0.8004]
[1745790686002,6.40786,1806.0,1805.9,1.90752]
[1745790686203,1.10724,1805.7,1805.6,4.31506]
[1745790686405,1.1072,1805.8,1805.7,1.10722]
[1745790686600,1.1072,1805.8,1805.7,1.6673]
[1745790687104,4.8292,1805.8,1805.7,1.6673]
[1745790688111,6.5293,1805.8,1805.7,1.6673]
[1745790692914,1.10724,1805.7,1805.6,1.10726]
[1745790693215,6.51374,1805.7,1805.6,1.10726]
[1745790693415,6.51374,1805.7,1805.6,2.74226]
[1745790694120,1.2244889,1805.7,1805.6,7.74226]
[1745790694509,19.72161718,1806.2,1806.1,1.107]
[1745790695512,19.72161718,1806.2,1806.1,2.8204]
[1745790697503,19.72161718,1806.2,1806.1,2.517]
[1745790697709,4.31474,1806.2,1806.1,2.517]
[1745790698110,8.03674,1806.2,1806.1,2.517]
[1745790703820,8.03674,1806.2,1806.1,3.624]
[1745790704112,1.107,1806.1,1806.0,1.91362]
[1745790704519,2.7597,1806.1,1806.0,1.91362]
[1745790705216,6.4817,1806.1,1806.0,1.91362]
[1745790706611,6.4817,1806.1,1806.0,0.8066]
[1745790707012,6.4817,1806.1,1806.0,3.62216]
[1745790708121,6.4817,1806.1,1806.0,2.5151]
[1745790708820,6.4817,1806.1,1806.0,3.62216]
[1745790710221,6.4817,1806.1,1806.0,1.7085]
[1745790712413,1.10706,1806.0,1805.9,1.10712]
[1745790712613,2.72596,1806.0,1805.9,2.77242]
[1745790712918,2.72596,1806.0,1805.9,1.6653]
[1745790713219,6.44796,1806.0,1805.9,1.6653]
[1745790714716,6.44796,1806.0,1805.9,1.10712]
[1745790716422,1.10712,1805.9,1805.8,3.55454]
[1745790716624,2.83062,1805.9,1805.8,3.55454]
[1745790717122,6.55262,1805.9,1805.8,3.55454]
[1745790718722,6.55262,1805.9,1805.8,1.6522]
[1745790719524,1.10718,1805.8,1805.7,1.10718]
[1745790719722,3.64758,1805.8,1805.7,1.10718]
[1745790720021,4.51038,1805.8,1805.7,1.10718]
[1745790720322,8.23238,1805.8,1805.7,1.10718]
[1745790720524,7.1252,1805.8,1805.7,2.79478]
[1745790720725,3.722,1805.8,1805.7,2.79478]
[1745790723229,7.665,1806.0,1805.8,1.10713]
[1745790723431,7.665,1806.0,1805.8,2.71203]
[1745790723730,7.665,1806.0,1805.9,1.10712]
[1745790723932,7.665,1806.0,1805.9,2.69442]
[1745790724133,11.387,1806.0,1805.9,2.69442]
[1745790726134,8.1792,1806.0,1805.9,2.69442]
[1745790726431,11.387,1806.0,1805.9,2.69442]
[1745790727833,8.1792,1806.0,1805.9,2.69442]
[1745790728135,11.387,1806.0,1805.9,1.5873]
[1745790737738,1.10723,1805.8,1805.7,1.10721]
[1745790737944,1.10723,1805.8,1805.7,2.70161]
[1745790738132,4.82923,1805.8,1805.7,2.70161]
[1745790738740,3.722,1805.8,1805.7,2.70161]
[1745790744339,4.82918,1805.8,1805.7,1.5944]
[1745790744539,6.50338,1805.8,1805.6,4.31506]
[1745790744740,2.5434,1805.7,1805.6,4.31506]
[1745790744940,2.5434,1805.7,1805.6,6.02896]
[1745790745148,6.2654,1805.7,1805.6,6.02896]
[1745790746348,3.722,1805.7,1805.6,6.02896]
[1745790746940,4.82929,1805.7,1805.5,1.89923]
[1745790747144,2.72201,1805.6,1805.5,3.63903]
[1745790747447,4.30361,1805.6,1805.5,3.63903]
[1745790748142,8.02561,1805.6,1805.5,3.63903]
[1745790748447,6.9183,1805.6,1805.5,3.63903]
[1745790749750,8.02561,1805.6,1805.5,3.63903]
[1745790750548,6.9183,1805.6,1805.5,3.63903]
[1745790757554,3.722,1805.6,1805.5,3.63903]
[1745790758256,4.31497,1805.9,1805.8,1.10718]
[1745790759163,9.60587,1805.9,1805.8,1.10718]
[1745790759361,9.60587,1805.9,1805.8,2.72648]
[1745790760763,1.10727,1805.7,1805.6,1.10726]
[1745790761061,1.10727,1805.7,1805.6,2.70076]
[1745790762363,4.82927,1805.7,1805.6,2.70076]
[1745790765464,3.722,1805.7,1805.6,2.70076]
[1745790765662,4.82924,1805.7,1805.6,2.70076]
[1745790766959,3.722,1805.7,1805.6,2.70076]
[1745790775368,4.82924,1805.7,1805.6,2.70076]
[1745790780465,1.10731,1805.6,1805.5,2.70122]
[1745790780666,2.79381,1805.6,1805.5,1.10732]
[1745790781173,6.51581,1805.6,1805.5,1.10732]
[1745790786073,1.10737,1805.5,1805.4,1.6943]
[1745790786375,1.10737,1805.5,1805.0,1.10763]
[1745790786376,2.76858,1805.4,1805.0,1.10763]
[1745790786573,1.10761,1805.1,1805.0,1.10763]
[1745790786969,4.37379,1805.2,1805.0,1.10763]
[1745790787272,8.09579,1805.2,1805.0,1.10763]
[1745790787468,1.6248,1805.1,1805.0,1.10763]
[1745790788675,2.73241,1805.1,1805.0,1.10763]
[1745790789175,6.45441,1805.1,1805.0,1.10763]
[1745790789374,5.3468,1805.1,1804.8,1.6398]
[1745790789572,1.10792,1804.6,1804.5,7.3215669]
[1745790789873,1.10792,1804.7,1804.5,7.3215669]
[1745790790074,0.7936,1804.6,1804.5,7.3215669]
[1745790790271,0.7936,1804.6,1804.5,8.4295469]
[1745790790272,2.3824,1804.6,1804.5,8.4295469]
[1745790790877,2.3824,1804.6,1804.5,10.0693469]
[1745790791072,0.8551,1804.8,1804.7,1.10786]
[1745790791280,3.2994,1804.8,1804.7,1.10786]
[1745790791678,3.2994,1804.8,1804.7,2.84016]
[1745790792174,4.65171,1805.0,1804.8,1.10777]
[1745790792374,4.65171,1805.0,1804.7,1.7323]
[1745790792375,4.31546,1805.1,1805.0,1.10767]
[1745790792765,4.31546,1805.1,1805.0,1.94217]
[1745790793065,5.96616,1805.1,1805.0,1.94217]
[1745790793268,9.68816,1805.1,1805.0,1.94217]
[1745790793980,8.5805,1805.1,1805.0,1.94217]
[1745790794875,6.9298,1805.1,1805.0,1.94217]
[1745790795070,3.2078,1805.1,1805.0,1.94217]
[1745790796272,6.9298,1805.1,1805.0,1.94217]
[1745790796680,8.03741,1805.1,1805.0,1.94217]
[1745790797379,8.03741,1805.1,1805.0,0.8345]
[1745790799086,8.03741,1805.1,1805.0,1.94217]
[1745790799475,4.82961,1805.1,1805.0,1.94217]
[1745790800481,4.82961,1805.1,1805.0,1.10767]
[1745790800682,6.40711,1805.1,1805.0,1.10767]
[1745790807789,1.10767,1805.0,1804.9,2.84]
[1745790818091,2.72807,1805.0,1804.9,2.84]
[1745790827197,6.45007,1805.0,1804.9,2.84]
[1745790828203,2.72807,1805.0,1804.9,2.84]
[1745790828403,2.72807,1805.0,1804.9,1.1077]
[1745790829092,2.72807,1805.0,1804.9,2.7092]
[1745790834115,6.45007,1805.0,1804.9,2.7092]
[1745790836807,1.10774,1804.9,1804.8,1.94086]
[1745790837103,4.37144,1804.9,1804.8,3.67846]
[1745790837304,8.09344,1804.9,1804.8,3.67846]
[1745790838022,8.09349,1804.9,1804.8,1.1078]
[1745790838215,1.1078,1804.8,1804.7,5.12033]
[1745790838417,2.7334,1804.8,1804.7,5.12033]
[1745790839017,1.6256,1804.8,1804.7,5.12033]
[1745790839317,5.3476,1804.8,1804.7,5.12033]
[1745790840213,6.4554,1804.8,1804.7,5.12033]
[1745790840415,5.3476,1804.8,1804.7,5.12033]
[1745790840611,3.722,1804.8,1804.7,5.12033]
[1745790841120,1.10771,1805.0,1804.9,1.10774]
[1745790841312,2.77621,1805.0,1804.9,1.10774]
[1745790841714,1.6685,1805.0,1804.9,1.10774]
[1745790841917,17.91592711,1805.3,1805.2,1.10755]
[1745790842220,14.70812711,1805.3,1805.2,4.31535]
[1745790842422,14.70812711,1805.3,1805.2,9.31535]
[1745790842815,14.70812711,1805.3,1805.2,10.90925]
[1745790843216,14.70812711,1805.3,1805.2,14.63125]
[1745790843921,13.57683711,1805.3,1805.2,14.63125]
[1745790844120,8.11039484,1805.3,1805.2,15.06609099]
[1745790844322,16.79077945,1805.7,1805.6,1.10731]
[1745790844522,16.79077945,1805.7,1805.6,4.64731]
[1745790844715,16.51381718,1805.7,1805.6,9.64731]
[1745790844921,15.40191718,1805.7,1805.6,9.64731]
[1745790845118,15.67887945,1805.7,1805.6,4.64731]
[1745790845823,1.84476227,1806.0,1805.9,1.10712]
[1745790847826,2.65166227,1806.0,1805.9,1.10712]
[1745790848618,3.75872227,1806.0,1805.9,1.10712]
[1745790848825,3.75872227,1806.0,1805.8,1.10714]
[1745790849024,1.6677,1805.9,1805.8,1.10714]
[1745790851120,0.27696227,1806.2,1805.7,4.44175]
[1745790851316,1.94466227,1806.2,1806.1,1.107]
[1745790851628,0.27696227,1806.2,1806.1,1.107]
[1745790852216,0.27696227,1806.2,1806.1,2.7728]
[1745790852929,0.27696227,1806.3,1806.2,1.10694]
[1745790853127,0.27696227,1806.3,1806.2,2.77274]
[1745790858033,1.38385227,1806.3,1806.0,0.8201]
[1745790858234,1.98346227,1806.2,1806.1,1.107]
[1745790858837,1.98346227,1806.2,1806.1,2.7909]
[1745790860132,1.98346227,1806.2,1806.1,1.107]
[1745790860328,2.79366227,1806.2,1806.0,4.65301]
[1745790860524,3.90065227,1806.2,1806.0,4.65301]
[1745790860728,2.84976227,1806.1,1806.0,4.65301]
[1745790861033,3.95676227,1806.1,1806.0,3.546]
[1745790861226,7.67876227,1806.1,1806.0,4.65306]
[1745790861433,0.27696227,1806.0,1805.7,4.31502]
[1745790861630,1.38414227,1805.8,1805.7,3.2078]
[1745790861835,1.38414227,1805.8,1805.7,4.31504]
[1745790862041,2.19434227,1805.8,1805.7,4.31504]
[1745790862726,3.79944227,1805.8,1805.7,3.2078]
[1745790863538,2.69226227,1805.8,1805.7,4.31504]
[1745790866633,3.79944227,1805.8,1805.7,4.31504]
[1745790869337,3.79944227,1805.8,1805.7,1.10724]
[1745790869839,2.69226227,1805.8,1805.7,1.10724]
[1745790873640,0.27696227,1805.8,1805.7,1.10724]
[1745790873842,0.27696227,1805.9,1805.8,1.10718]
[1745790874042,0.27696227,1805.9,1805.8,4.65418]
[1745790875233,0.27696227,1805.9,1805.8,8.37618]
[1745790880148,0.27696227,1806.0,1805.9,1.10712]
[1745790885348,0.27696227,1806.0,1805.9,2.78092]
[1745790885548,0.27696227,1806.0,1805.9,5.98872]
[1745790887550,0.27696227,1806.0,1805.9,2.78092]
[1745790894746,1.87876227,1806.0,1805.9,2.78092]
[1745790912059,1.87876227,1806.0,1805.9,6.32992]
[1745790913261,1.87876227,1806.0,1805.9,4.65612]
[1745790913855,2.98582227,1806.0,1805.9,3.549]
[1745790916060,7.98582227,1806.0,1805.9,3.549]
[1745790916452,1.10712,1805.9,1805.7,1.10722]
[1745790916658,0.27696227,1805.8,1805.7,1.10722]
[1745790916863,1.10496227,1805.8,1805.6,3.2078]
[1745790917164,1.708,1805.7,1805.6,4.31509]
[1745790917362,1.708,1805.7,1805.6,4.31511]
[1745790918863,1.708,1805.7,1805.6,1.10731]
[1745790919751,1.98496227,1805.7,1805.6,1.10731]
[1745790922060,3.09220227,1805.7,1805.6,1.10731]
[1745790922565,3.09220227,1805.7,1805.5,7.83813]
[1745790922766,1.6924,1805.6,1805.5,7.83813]
[1745790925676,2.79971,1805.6,1805.5,7.83813]
[1745790925869,1.6924,1805.6,1805.5,7.83813]
[1745790929281,2.79971,1805.6,1805.5,7.83813]
[1745790929876,1.6924,1805.6,1805.5,7.83813]
[1745790933484,2.79971,1805.6,1805.5,7.83813]
[1745790933687,1.6924,1805.6,1805.5,7.83813]
[1745790934683,2.79971,1805.6,1805.5,6.7308]
[1745790935783,3.62461,1805.6,1805.5,6.7308]
[1745790936185,3.62461,1805.6,1805.5,7.83817]
[1745790937684,2.5173,1805.6,1805.5,6.7308]
[1745790937886,3.90157227,1805.6,1805.5,6.7308]
[1745790939794,3.90157227,1805.6,1805.5,7.83817]
[1745790943799,3.90157227,1805.6,1805.5,4.63037]
[1745790944001,3.90157227,1805.6,1805.5,7.83817]
[1745790945396,2.79426227,1805.6,1805.5,7.83817]
[1745790946302,3.90157227,1805.6,1805.5,7.83817]
[1745790947102,2.79426227,1805.6,1805.5,7.83817]
[1745790951302,2.79426227,1805.6,1805.5,4.31517]
[1745790952102,3.90157227,1805.6,1805.5,1.10737]
[1745790958414,2.79426227,1805.6,1805.5,1.10737]
[1745790965620,3.90157227,1805.6,1805.5,1.10737]
[1745790970423,2.79426227,1805.6,1805.5,1.10737]
[1745790972026,3.90157227,1805.6,1805.5,1.10737]
[1745790975239,2.79426227,1805.6,1805.5,1.10737]
[1745790981539,3.90157227,1805.6,1805.5,1.10737]
[1745790982431,1.38439227,1805.4,1805.3,3.2078]
[1745790982936,1.38439227,1805.4,1805.3,4.31529]
[1745790983141,2.98289227,1805.4,1805.3,4.31529]
[1745790984138,2.98289227,1805.4,1805.3,3.2078]
[1745790984341,2.98289227,1805.4,1805.3,4.31529]
[1745790984642,2.98289227,1805.4,1805.3,3.2078]
[1745790985643,2.98289227,1805.4,1805.3,4.31529]
[1745790986342,1.87546227,1805.4,1805.3,4.31529]
[1745790987138,2.98289227,1805.4,1805.3,4.31529]
[1745790991147,2.98289227,1805.4,1805.3,1.10749]
[1745790992547,1.87546227,1805.4,1805.3,1.10749]
[1745790993550,1.87546227,1805.4,1805.2,5.91491]
[1745790993749,1.10759,1805.2,1805.0,4.0114]
[1745790993943,1.86726227,1805.1,1805.0,5.11907]